Cogmind - Beta 14 @@@ ROGUE MODE // 2024.12.30 @ 02:07:34 Player: Berg Result: Destroyed by X-57 Shotgunner with High-powered Shotgun Performance ------------- Evolutions (2) 1000 Regions Visited (4) 800 Robots Destroyed (28) 140 Value Destroyed (467) 467 Prototype IDs (1) 20 Alien Tech Used (0) 0 Bonus (0) 0 TOTAL SCORE: 2427 Bonus ------- None Cogmind --------- Core Integrity 0/550 Matter 264/300 Energy 100/100 System Corruption 2% Temperature Cool (0) Movement Core (50) Location -8/Materials Parts ------- > --- POWER (1) -------- (None) > --- PROPULSION (4) --- (None) > --- UTILITY (4) ------ Signal Interpreter > --- WEAPON (2) ------- (None) > --- INVENTORY (5) ---- Light Nuclear Core Sensor Array Hacking Suite Heavy Particle Cannon Datajack Peak State ------------ > --- POWER ------------ Light Nuclear Core > --- PROPULSION ------- Improved Flight Unit Improved Flight Unit Improved Flight Unit Improved Flight Unit > --- UTILITY ---------- Small Storage Unit Improved Sensor Array Signal Interpreter Reaction Control System > --- WEAPON ----------- Heavy Particle Cannon Mining Claw > --- INVENTORY -------- Improved Flight Unit Improved Heat Sink Sensor Array Reaction Control System Hacking Suite Hacking Suite Heavy Particle Cannon Datajack [Rating: 29] Favorites ----------- Power Light Nuclear Core Engine Ion Engine Power Core Light Nuclear Core Propulsion Improved Flight Unit Leg Aluminum Leg Wheel Compact Wheel Hover Unit Hover Unit Flight Unit Improved Flight Unit Utility Small Storage Unit Device Seismic Detector Storage Small Storage Unit Processor Improved Targeting Computer Protection Light Armor Plating Weapon Beam Cannon Energy Gun Small Laser Energy Cannon Beam Cannon Ballistic Gun Assault Rifle Slashing Weapon Mining Claw Special Melee Weapon Datajack Build | -11 -10 -9 -9 -8 ------- Run | Yrd Mat Mat Sto Mat Slots Evolved 4 | . . 2 . 2 Power . | . . . . . Propulsion 2 | . . 1 . 1 Utility 2 | . . 1 . 1 Weapon . | . . . . . Parts Attached 56 | 8 16 21 3 8 Power 6 | 1 3 . . 2 Engine 3 | 1 1 . . 1 Core 3 | . 2 . . 1 Reactor . | . . . . . Propulsion 25 | 3 6 14 . 2 Treads . | . . . . . Leg 7 | 2 5 . . . Wheel 2 | 1 1 . . . Hover 10 | . . 10 . . Flight 6 | . . 4 . 2 Utility 15 | 2 3 5 2 3 Device 8 | 1 2 . 2 3 Storage 1 | 1 . . . . Processor 5 | . 1 4 . . Hackware . | . . . . . Protection 1 | . . 1 . . Artifact . | . . . . . Weapon 10 | 2 4 2 1 1 Energy Gun 1 | 1 . . . . Energy Cannon 4 | . 3 . . 1 Ballistic Gun 1 | 1 . . . . Ballistic Cannon . | . . . . . Launcher . | . . . . . Special Weapon . | . . . . . Impact Weapon . | . . . . . Slashing Weapon 3 | . 1 1 1 . Piercing Weapon . | . . . . . Special Melee Weapon 1 | . . 1 . . Unidentified Prototypes 1 | . . 1 . . Parts Lost 16 | . 3 . 2 11 Power 3 | . 1 . 1 1 Propulsion 7 | . 2 . . 5 Utility 4 | . . . . 4 Weapon 2 | . . . 1 1 Highest Loss Streak 11 | . 2 . 2 11 To Critical Strikes . | . . . . . Average Slot Usage (%) 96 | . 97 96 94 90 Engine 3 | . 8 . . 5 Core 8 | . 5 11 9 3 Leg 9 | . 26 . . . Hover 2 | . . 5 . . Flight 16 | . . 24 33 32 Device 6 | . 14 . 1 14 Storage 11 | . 14 11 11 8 Processor 11 | . . 18 17 9 Energy Gun 1 | . 3 . . . Energy Cannon 11 | . 11 11 11 8 Ballistic Gun 1 | . 3 . . . Slashing Weapon 9 | . 9 9 11 8 Peak Build Rating 29 | 7 10 19 22 29 Average Rating 13 | 5 8 17 18 22 On Entrance 10 | . 7 10 19 15 Naked Turns . | . . . . . Heaviest Build 21 | 14 17 18 21 20 Greatest Support 20 | 20 20 18 15 20 Greatest Overweight (x) 5 | 1 5 5 1 1 Average Overweight (x) . | . . . . . Largest Inventory Capacity 8 | 8 8 8 8 8 Average Capacity 7 | 7 8 8 8 7 Most Carried 8 | 5 8 8 8 8 Average Carried 7 | 3 7 7 7 7 Final Capacity 8 | 8 8 8 8 5 Final Carried 8 | 5 7 8 8 5 Class Distribution -------------------- 89% | Mutant 7% | Scavenger-Mutant Dominant Class ---------------- Mutant | -10/Materials Mutant | -9/Materials Mutant | -9/Storage Sprinter | -8/Materials Resources | -11 -10 -9 -9 -8 ----------- Run | Yrd Mat Mat Sto Mat Matter Collected 694 | 272 185 227 10 . Remotely . | . . . . . Salvage Created 787 | 54 461 231 41 . Parts 69 | 6 36 21 6 . Haulers Intercepted . | . . . . . Recyclers Shooed 1 | 1 . . . . Parts Field Recycled . | . . . . . Retrieved Matter . | . . . . . Parts Self-Destructed . | . . . . . Prevented . | . . . . . Kills | -11 -10 -9 -9 -8 ------- Run | Yrd Mat Mat Sto Mat Combat Hostiles Destroyed 13 | . 7 3 3 . Melee 5 | . . 2 3 . Guns 3 | . 3 . . . Cannons 5 | . 4 1 . . Classes Destroyed 9 | 1 7 1 . . Worker 4 | . 3 1 . . Builder 1 | . 1 . . . Tunneler 3 | 3 . . . . Recycler 2 | . 2 . . . Operator 2 | . 1 1 . . Watcher 3 | . 1 2 . . Swarmer 6 | . 3 . 3 . Grunt 6 | . 4 2 . . Sentry 1 | . . 1 . . Best Kill Streak 5 | 3 5 2 3 . Combat Bots Only 3 | . 3 2 3 . Max Kills in Single Turn 1 | 1 1 1 1 . Gunslinging . | . . . . . Exploded . | . . . . . Melee 1 | . . 1 1 . Uniques/NPCs Destroyed . | . . . . . Combat | -11 -10 -9 -9 -8 -------- Run | Yrd Mat Mat Sto Mat Hostile Shots Fired 231 | . 59 10 51 111 Missed 67 | . 13 . 19 35 Damage Taken 2193 | . 585 138 295 1175 Core 904 | . 206 72 63 563 Absorbed by Shields 16 | . . . 16 . Core Remaining (%) 61 | 100 17 . 66 . Volleys Fired 64 | 14 48 1 1 . Largest 2 | 1 2 1 1 . Hottest 120 | 40 120 60 60 . Shots Fired 80 | 14 64 1 1 . Gun 44 | 14 30 . . . Cannon 36 | . 34 1 1 . Launcher . | . . . . . Special . | . . . . . Kinetic 15 | . 15 . . . Thermal 65 | 14 49 1 1 . Explosive . | . . . . . Electromagnetic . | . . . . . Robot Hit Streak 7 | 5 7 2 . . Robot Miss Streak 5 | 1 5 . . . Penetration Max . | . . . . . Secondary Targets 1 | . 1 . . . Max Gunslinging Chain 1 | . 1 . . . Shots Hit Robots 81 | 11 37 25 7 1 Core Hits 30 | 4 17 6 3 . Critical Kills . | . . . . . Critical Parts Destroyed . | . . . . . Critical Strikes . | . . . . . Melee Attacks 79 | . 14 42 21 2 Impact . | . . . . . Slashing 66 | . 14 29 21 2 Piercing . | . . . . . Sneak Attacks 12 | . 3 8 1 . Combat Hostiles . | . . . . . Follow-up Attacks . | . . . . . Damage Inflicted 1583 | 135 780 435 192 41 Guns 297 | 126 171 . . . Cannons 337 | . 319 18 . . Explosions 95 | . 95 . . . Melee 838 | . 195 417 192 34 Ramming 16 | 9 . . . 7 Kinetic 82 | . 82 . . . Thermal 552 | 126 408 18 . . Explosive 95 | . 95 . . . Electromagnetic . | . . . . . Impact . | . . . . . Slashing 838 | . 195 417 192 34 Piercing . | . . . . . Highest Corruption 2 | . . 2 2 2 Average Corruption 2 | . . 2 2 2 Corruption Purged . | . . . . . Corruption Blocked . | . . . . . Effects 5 | . . 1 2 2 Message Errors 2 | . . . 2 . Matter Fused 1 | . . 1 . . Heat Flow Errors 1 | . . . . 1 Parts Rejected 1 | . . . . 1 Overload Shots . | . . . . . Overflow Damage 216 | . 134 62 20 . Projectiles . | . . . . . Explosions 112 | . 112 . . . Melee 104 | . 22 62 20 . Knockbacks . | . . . . . Impact . | . . . . . Kinetic . | . . . . . Secondary . | . . . . . Self-Inflicted Damage 101 | . 98 . . 3 Shots 1 | . 1 . . . Rammed 2 | . . . . 2 Targets Rammed 3 | 1 . . . 2 Kicked 1 | 1 . . . . Crushed . | . . . . . Highest Temperature 344 | . 344 24 10 156 Average Temperature 79 | . 93 14 7 46 Received Heat Transfer 762 | . 183 48 45 486 Effects 1 | . 1 . . . Shutdowns 1 | . 1 . . . Siege Activations . | . . . . . Robots Corrupted . | . . . . . Combat Hostiles . | . . . . . Parts Fried . | . . . . . Impact Corruptions . | . . . . . Robots Melted . | . . . . . Combat Hostiles . | . . . . . Parts Melted 1 | . 1 . . . Heat Transferred 1203 | 300 866 37 . . Parts Sabotaged . | . . . . . Parts Stolen . | . . . . . Parts Stripped . | . . . . . Power Chain Reactions . | . . . . . Alert | -11 -10 -9 -9 -8 ------- Run | Yrd Mat Mat Sto Mat Peak Influence 357 | 15 192 357 333 176 Initial 150 | . 9 17 150 146 Average 126 | 6 93 137 257 146 Maximum Alert Level 1 | . . 1 1 . Low Security (%) 83 | 100 100 82 9 100 Level 1 16 | . . 17 90 . Level 2 . | . . . . . Level 3 . | . . . . . Level 4 . | . . . . . Level 5 . | . . . . . High Security . | . . . . . Max Security . | . . . . . Squads Dispatched 5 | . . 1 2 2 Investigation . | . . . . . Extermination . | . . . . . Reinforcement 5 | . . 1 2 2 Assault . | . . . . . Garrison . | . . . . . Intercept . | . . . . . Searches Triggered . | . . . . . Construction Impeded . | . . . . . Haulers Reinforced . | . . . . . Active Scanning Responses . | . . . . . Cargo Convoy Interrupts . | . . . . . Stealth | -11 -10 -9 -9 -8 --------- Run | Yrd Mat Mat Sto Mat Distress Signals 8 | . 2 4 1 1 Communications Jammed . | . . . . . Distress Signals . | . . . . . Times Spotted 77 | . 18 28 13 18 Peak Tracking Total 15 | . 5 13 6 15 Tactical Retreats 12 | . . 6 3 3 Traps | -11 -10 -9 -9 -8 ------- Run | Yrd Mat Mat Sto Mat Traps Triggered 5 | . 2 1 1 1 Indirectly . | . . . . . Trap Hack Attempts . | . . . . . Triggered . | . . . . . Disarmed . | . . . . . Reprogrammed . | . . . . . Reused . | . . . . . Traps Extracted . | . . . . . Installed . | . . . . . Triggered . | . . . . . Machines | -11 -10 -9 -9 -8 ---------- Run | Yrd Mat Mat Sto Mat Machines Disabled 1 | . 1 . . . Max in Single Turn 1 | . 1 . . . Machines Repaired . | . . . . . Machines Dismantled . | . . . . . Machines Sabotaged . | . . . . . Overloaded Fab Kills . | . . . . . Hacking | -11 -10 -9 -9 -8 --------- Run | Yrd Mat Mat Sto Mat Machines Accessed 17 | . 7 6 3 1 Terminals 13 | . 6 4 3 . Fabricators . | . . . . . Repair Stations . | . . . . . Recycling Units 2 | . 1 1 . . Scanalyzers 1 | . . 1 . . Garrison Access 1 | . . . . 1 Total Hacks 50 | . 22 17 8 3 Successful 24 | . 11 11 2 . Failed 25 | . 10 6 6 3 Catastrophic 5 | . 3 1 1 . Database Lockouts 1 | . 1 . . . Manual 35 | . 16 13 6 . Terminals 36 | . 17 11 8 . Fabricators . | . . . . . Repair Stations . | . . . . . Recycling Units 9 | . 5 4 . . Scanalyzers 2 | . . 2 . . Garrison Access 3 | . . . . 3 Terminal Hacks 7 | . 4 2 1 . Robot Analysis 1 | . 1 . . . Open Door 1 | . . . 1 . Terminal Index 2 | . 1 1 . . Alert Level 2 | . 1 1 . . Locate Traps 1 | . 1 . . . Fabricator Hacks . | . . . . . Repair Station Hacks . | . . . . . Recycling Unit Hacks 3 | . 2 1 . . Process 1 | . 1 . . . Report Inventory 2 | . 1 1 . . Scanalyzer 2 | . . 2 . . Insert Component 1 | . . 1 . . Analyze 1 | . . 1 . . Garrison Access Hacks . | . . . . . Unauthorized Hacks 12 | . 5 6 1 . Terminals 8 | . 3 4 1 . Track 1 | . . 1 . . Botnet 7 | . 3 3 1 . Fabricators . | . . . . . Repair Stations . | . . . . . Recycling Units 4 | . 2 2 . . Reject 2 | . 1 1 . . Mask 2 | . 1 1 . . Scanalyzers . | . . . . . Garrison Access . | . . . . . Data Cores Recovered 1 | . 1 . . . Used 1 | . 1 . . . Hacking Detections 15 | . 6 5 3 1 Full Trace Events . | . . . . . Feedback Events . | . . . . . Feedback Blocked . | . . . . . Robot Schematics Acquired . | . . . . . Robots Built . | . . . . . Authchips . | . . . . . Time . | . . . . . Total Robot Build Rating . | . . . . . Part Schematics Acquired . | . . . . . Parts Built . | . . . . . Authchips . | . . . . . Time . | . . . . . Total Part Build Rating . | . . . . . Parts Repaired . | . . . . . Time . | . . . . . Parts Recycled . | . . . . . Recycled Matter 93 | . 93 . . . Retrieved Matter . | . . . . . Retrieved Components . | . . . . . Parts Scanalyzed 1 | . . 1 . . Part Schematics Acquired . | . . . . . Parts Damaged . | . . . . . Bothacking | -11 -10 -9 -9 -8 ------------ Run | Yrd Mat Mat Sto Mat Used RIF Installer . | . . . . . Robots Hacked 5 | . . 5 . . Non-combat 5 | . . 5 . . Combat . | . . . . . Robot Hacks Applied 10 | . . 10 . . parse_system 6 | . . 6 . . no_distress 2 | . . 2 . . find_recycling 1 | . . 1 . . find_station 1 | . . 1 . . Relay Couplers Released . | . . . . . Fabnet Peak Effective % . | . . . . . Robots Rewired . | . . . . . Allies Hacked . | . . . . . Hacks Repelled . | . . . . . Allies | -11 -10 -9 -9 -8 -------- Run | Yrd Mat Mat Sto Mat Total Allies . | . . . . . Largest Group . | . . . . . Highest-Rated Group . | . . . . . Highest-Rated Ally . | . . . . . Total Orders 2 | . . . 2 . EXPLORE 2 | . . . 2 . Ally Attacks . | . . . . . Total Damage . | . . . . . Kills . | . . . . . Allies Corrupted . | . . . . . Allies Melted . | . . . . . Intel | -11 -10 -9 -9 -8 ------- Run | Yrd Mat Mat Sto Mat Robot Analysis Total 1 | . 1 . . . Derelict Logs Recovered . | . . . . . Drone Launches 8 | . . . 8 . Drone Recoveries 1 | . . . 1 . Exploration | -11 -10 -9 -9 -8 ------------- Run | Yrd Mat Mat Sto Mat Turns Passed 2297 | 126 812 1026 223 110 Spaces Moved 1871 | 47 487 939 209 189 Core 13 | 1 1 3 . 8 Treads . | . . . . . Legs 527 | 45 482 . . . Wheels 5 | 1 4 . . . Hover 126 | . . 126 . . Flight 1200 | . . 810 209 181 Fastest Speed 31 | 50 100 34 34 31 Average Speed 61 | 128 121 38 35 34 Slowest Speed 300 | 190 300 300 104 107 Overloaded Moves . | . . . . . Propulsion Burnouts . | . . . . . Robots Hopped 32 | . . 8 13 11 Cave-ins Triggered . | . . . . . Exploration Rate (%) 38 | 4 74 47 43 26 Regions Visited 4 Branch Regions 1 Pre-discovered Areas . | . . . . . Known Exits Taken 3 | . 1 1 1 . Unknown Exits Taken 1 | 1 . . . . Scrap Searched . | . . . . . Spaces Dug 11 | . 1 8 2 . Terrain Destroyed 20 | . 10 8 2 . Melee 11 | . 1 8 2 . Projectile . | . . . . . AOE 9 | . 9 . . . Terrain Rammed . | . . . . . Walls Destroyed . | . . . . . Machines Disabled . | . . . . . Actions | -11 -10 -9 -9 -8 --------- Run | Yrd Mat Mat Sto Mat Total 2770 | 95 618 1536 302 219 Wait 639 | 20 27 511 60 21 Move 1804 | 46 486 922 183 167 Hop 30 | . . 8 12 10 Pick Up 28 | 5 11 8 1 3 Fast Attach 35 | 7 12 12 2 2 Attach 15 | 1 3 6 1 4 Detach 12 | 1 2 7 1 1 Swap 6 | . 1 3 . 2 Drop 35 | . 14 16 1 4 Fire 64 | 14 48 1 1 . Melee 79 | . 14 42 21 2 Ram 2 | . . . . 2 Kick 1 | 1 . . . . Crush . | . . . . . Escape Stasis 17 | . . . 16 1 Rewire . | . . . . . Trap . | . . . . . Miscellaneous 3 | . . . 3 . Route ------- -11/Scrapyard -10/Materials (discovered 3 exits: *Mat x2 / [*Min]) -9/Materials -9/Storage -8/Materials (discovered 1 exit: [*Fac]) History --------- Turn | Location | Event 23 | -11/Scrapyard | Discovered new exit (range 15) 127 | -11/Scrapyard | Entered Materials 311 | -10/Materials | Build established: Mutant 384 | -10/Materials | Central database locked down 418 | -10/Materials | Discovered new exit (range 7) 483 | -10/Materials | Discovered new exit (range 16) 596 | -10/Materials | Discovered new exit (range 8) 780 | -10/Materials | Core integrity fell below 50% 827 | -10/Materials | Core integrity fell below 20% 937 | -10/Materials | Identified exit to Materials 939 | -10/Materials | Entered another Materials area 939 | -9/Materials | Evolved 2 slots: Propulsion x1, Utility x1 1947 | -9/Materials | Discovered new exit (range 11) 1964 | -9/Materials | Identified exit to Storage 1965 | -9/Materials | Entered Storage 2152 | -9/Storage | Lost 3 allies 2174 | -9/Storage | Discovered new exit (range 9) 2188 | -9/Storage | Identified exit to Materials 2188 | -9/Storage | Entered Materials 2188 | -8/Materials | Evolved 2 slots: Propulsion x1, Utility x1 2285 | -8/Materials | Discovered new exit (range 6) 2288 | -8/Materials | Core integrity fell below 50% 2296 | -8/Materials | Core integrity fell below 20% 2298 | -8/Materials | Destroyed by X-57 Shotgunner with High-powered Shotgun Last Messages --------------- 02271_ Reaction Control System destroyed. 02273_ Imp. Flight Unit destroyed. 02274_ Slammed into G-47 Trooper. 02274_ Destabilizing: Core damaged (-27). 02275_ Slammed into G-47 Trooper. 02275_ Signal Interpreter broken. 02275_ Destabilizing: Short circuit. 02278_ ALERT: Suspicious intruders detected, dispatching Specialist reinforcements to area. 02280_ System corrupted: Mining Claw rejected. 02281_ Imp. Sensor Array destroyed. 02283_ R-06 Scavenger collects Mining Claw. 02283_ Critical hit (Burn: +37). 02284_ Hvy. Particle Cannon destroyed. 02285_ EXIT=FOUND 02285_ Sml. Storage Unit destroyed. 02286_ R-06 Scavenger collects Hacking Suite. 02292_ Imp. Flight Unit destroyed. 02292_ Lgt. Nuclear Core destroyed. 02294_ Imp. Flight Unit destroyed. Map ----- +----------------------------------------------------+ | | | | | | | | | | | | | | | | | | | | | | | | | | | | | | | | | ??????????????????#######??????????????????????? | | ??????????????????# ! #?????????????????????? | | ??????????????????# #?????????????????????? | | ??????????????????# #?????????????????????? | | ??????????????????# #?###?????????????????? | | ??????????????????# ! #? !##????????????????? | | ??????????????????#= #? !#????????????????? | | ??????????????????####+#### !#????????????????? | | ??????????????????# !##???????????????? | | ??????????????????# < g@ !;#???????????????? | | ??????????????????# g Hx !###???????????????? | | ?????????????##########g ####?????????????????? | | ?????????????# #sxY;#???????????????????? | | ?????????????# # ##???????????????????? | | ?????????????# == g #????????????????????? | | ?????????????# =% # ??????????????? | | ?????????????# = # ??????????? | | ?????????????# # ???????????? | | ?????????????# ######## ###???????????? | | ?????????????# #????????? #?????????????? | | ?????????????# #????????????????????????? | | ?????????????####+##/##????????????????????????? | | ????????????????# #?????????????????????????? | | ????????????????# #?????????????????????????? | | ????????????????# #?????????????????????????? | | ????????????????# #?????????????????????????? | | ????????# ### ######????????????????????? | | ????????+ / !!*#????????????????????? | | ????????# ### # !**#????????????????????? | | ????????# ????# # !* #????????????????????? | | ????????#???????# # ! #????????????????????? | | ????????????????# # #????????????????????? | | ?????????????#### # !#????????????????????? | | ?????????????# + #????????????????????? | +----------------------------------------------------+ Best States ------------- Heat Dissipation 31 Energy Generation 14 Energy Capacity 250 Matter Stores 300 Matter Capacity 300 Sight Range 16 Robot Scan Range 15 Terrain Scan Density 10 Armor Coverage 150 Evasion (%) 71 Targeting Accuracy 12 Item Schematics ----------------- None Robot Schematics ------------------ None Fabricated ------------ Nothing Alien Tech Used ----------------- None Achievements -------------- None Challenges ------------ None Game ------ Seed ExplosiveTachyonTube Manual? 0 Play Time 00:38:44 Cumulative 84.5 hours Start 2024.12.30 @ 00:59:23 End 2024.12.30 @ 02:07:34 Sessions 1 Manual Loads 0 Difficulty Rogue Special Mode None Game No. 80 Rogue 80 Adventurer 0 Explorer 0 Win Type - Total 1 Types 1/0/0/0/0/0/0/0/0 Lore% 15 Gallery% 45 Achievement% 37 Wizard Run 0 Options --------- Layout 0 ASCII 0 Keyboard 1 Movement Numpad Keybinds 0 Fullscreen 2 Font 18/SmallcapsGlow Map View 76x50 Zoom Use 0% Tactical HUD 1 Map Filters NONE Filters NONE Steam 1 RUN: 7aa627b9-2079-4d36-bdf0-d0b807c71532